Workbook

Sheet Sheet1
A1: 10 | B1: 200 | C1: 50 | D1: =A1+B1 -> 210 | E1: =A1*B1+C1 -> 2050
A2: 11 | B2: 101 | C2: 51 | D2: =A2+B2 -> 112 | E2: =A2*B2+C2 -> 1162 | M2: 12 | N2: 12 | O2: 12 | P2: 12 | Q2: 12
A3: 12 | B3: 102 | C3: 52 | D3: 114 | E3: 1276 | M3: 12 | N3: 12 | O3: 12 | P3: 12 | Q3: 12
A4: 13 | B4: 103 | C4: 53 | D4: 116 | E4: 1392 | M4: 12 | N4: 12 | O4: 12 | P4: 12 | Q4: 12
A5: 14 | B5: 104 | C5: 54 | D5: 118 | E5: 1510 | M5: 12 | N5: 12 | O5: 12 | P5: 12 | Q5: 12
A6: 15 | B6: 105 | C6: 55 | D6: 120 | E6: 1630 | M6: 12 | N6: 12 | O6: 12 | P6: 12 | Q6: 12
A7: 16 | B7: 106 | C7: 56 | D7: 122 | E7: 1752 | M7: 12 | N7: 12 | O7: 12 | P7: 12 | Q7: 12
A8: 17 | B8: 107 | C8: 57 | D8: 124 | E8: 1876 | M8: 12 | N8: 12 | O8: 12 | P8: 12 | Q8: 12
A9: 18 | B9: 108 | C9: 58 | D9: 126 | E9: 2002 | M9: 12 | N9: 12 | O9: 12 | P9: 12 | Q9: 12
A10: 19 | B10: 109 | C10: 59 | D10: 128 | E10: 2130 | M10: 12 | N10: 12 | O10: 12 | P10: 12 | Q10: 12
A11: 20 | B11: 110 | C11: 60 | D11: 130 | E11: 2260 | M11: 12 | N11: 12 | O11: 12 | P11: 12 | Q11: 12
A12: 21 | B12: 111 | C12: 61 | D12: 132 | E12: 2392 | M12: 12 | N12: 12 | O12: 12 | P12: 12 | Q12: 12
A13: 22 | B13: 112 | C13: 62 | D13: 134 | E13: 2526 | M13: 12 | N13: 12 | O13: 12 | P13: 12 | Q13: 12
A14: 23 | B14: 113 | C14: 63 | D14: 136 | E14: 2662 | M14: 12 | N14: 12 | O14: 12 | P14: 12 | Q14: 12
A15: 24 | B15: 114 | C15: 64 | D15: 138 | E15: 2800 | M15: 12 | N15: 12 | O15: 12 | P15: 12 | Q15: 12
M16: 12 | N16: 12 | O16: 12 | P16: 12 | Q16: 12

Sheet Sheet2
A1: 16 | B1: 200 | C1: 50 | D1: =A1+B1 -> 216 | E1: =A1*B1+C1 -> 3250
A2: 17 | B2: 101 | C2: 51 | D2: =A2+B2 -> 118 | E2: =A2*B2+C2 -> 1768
A3: 18 | B3: 102 | C3: 52 | D3: 120 | E3: 1888
A4: 19 | B4: 103 | C4: 53 | D4: 122 | E4: 2010
A5: 20 | B5: 104 | C5: 54 | D5: 124 | E5: 2134
A6: 21 | B6: 105 | C6: 55 | D6: 126 | E6: 2260
A7: 22 | B7: 106 | C7: 56 | D7: 128 | E7: 2388
A8: 23 | B8: 107 | C8: 57 | D8: 130 | E8: 2518
A9: 24 | B9: 108 | C9: 58 | D9: 132 | E9: 2650
A10: 25 | B10: 109 | C10: 59 | D10: 134 | E10: 2784
A11: 26 | B11: 110 | C11: 60 | D11: 136 | E11: 2920
A12: 27 | B12: 111 | C12: 61 | D12: 138 | E12: 3058
A13: 28 | B13: 112 | C13: 62 | D13: 140 | E13: 3198
A14: 29 | B14: 113 | C14: 63 | D14: 142 | E14: 3340
A15: 30 | B15: 114 | C15: 64 | D15: 144 | E15: 3484

Sheet Sheet3
A1: 23 | B1: 200 | C1: 50 | D1: =A1+B1 -> 223 | E1: =A1*B1+C1 -> 4650
A2: 23 | B2: 101 | C2: 51 | D2: =A2+B2 -> 124 | E2: =A2*B2+C2 -> 2374
A3: 23 | B3: 102 | C3: 52 | D3: 125 | E3: 2398
A4: 23 | B4: 103 | C4: 53 | D4: 126 | E4: 2422
A5: 23 | B5: 104 | C5: 54 | D5: 127 | E5: 2446
A6: 23 | B6: 105 | C6: 55 | D6: 128 | E6: 2470
A7: 23 | B7: 106 | C7: 56 | D7: 129 | E7: 2494
A8: 23 | B8: 107 | C8: 57 | D8: 130 | E8: 2518
A9: 23 | B9: 108 | C9: 58 | D9: 131 | E9: 2542
A10: 23 | B10: 109 | C10: 59 | D10: 132 | E10: 2566
A11: 23 | B11: 110 | C11: 60 | D11: 133 | E11: 2590
A12: 23 | B12: 111 | C12: 61 | D12: 134 | E12: 2614
A13: 23 | B13: 112 | C13: 62 | D13: 135 | E13: 2638
A14: 23 | B14: 113 | C14: 63 | D14: 136 | E14: 2662
A15: 23 | B15: 114 | C15: 64 | D15: 137 | E15: 2686

Sheet Sheet4
A1: 1020 | B1: 200 | C1: 50 | D1: =A1+B1 -> 1220 | E1: =A1*B1+C1 -> 204050
A2: 1020 | B2: 101 | C2: 51 | D2: =A2+B2 -> 1121 | E2: =A2*B2+C2 -> 103071
A3: 1020 | B3: 102 | C3: 52 | D3: 1122 | E3: 104092
A4: 1020 | B4: 103 | C4: 53 | D4: 1123 | E4: 105113
A5: 1020 | B5: 104 | C5: 54 | D5: 1124 | E5: 106134
A6: 1020 | B6: 105 | C6: 55 | D6: 1125 | E6: 107155
A7: 1020 | B7: 106 | C7: 56 | D7: 1126 | E7: 108176
A8: 1020 | B8: 107 | C8: 57 | D8: 1127 | E8: 109197
A9: 1020 | B9: 108 | C9: 58 | D9: 1128 | E9: 110218
A10: 1020 | B10: 109 | C10: 59 | D10: 1129 | E10: 111239
A11: 1020 | B11: 110 | C11: 60 | D11: 1130 | E11: 112260
A12: 1020 | B12: 111 | C12: 61 | D12: 1131 | E12: 113281
A13: 1020 | B13: 112 | C13: 62 | D13: 1132 | E13: 114302
A14: 1020 | B14: 113 | C14: 63 | D14: 1133 | E14: 115323
A15: 1020 | B15: 114 | C15: 64 | D15: 1134 | E15: 116344

Sheet Sheet5
A1: 444 | B1: 200 | C1: 50 | D1: =A1+B1 -> 644 | E1: =A1*B1+C1 -> 88850
A2: 445 | B2: 101 | C2: 51 | D2: =A2+B2 -> 546 | E2: =A2*B2+C2 -> 44996
A3: 446 | B3: 102 | C3: 52 | D3: 548 | E3: 45544
A4: 447 | B4: 103 | C4: 53 | D4: 550 | E4: 46094
A5: 448 | B5: 104 | C5: 54 | D5: 552 | E5: 46646
A6: 449 | B6: 105 | C6: 55 | D6: 554 | E6: 47200
A7: 450 | B7: 106 | C7: 56 | D7: 556 | E7: 47756
A8: 451 | B8: 107 | C8: 57 | D8: 558 | E8: 48314
A9: 452 | B9: 108 | C9: 58 | D9: 560 | E9: 48874
A10: 453 | B10: 109 | C10: 59 | D10: 562 | E10: 49436
A11: 454 | B11: 110 | C11: 60 | D11: 564 | E11: 50000
A12: 455 | B12: 111 | C12: 61 | D12: 566 | E12: 50566
A13: 456 | B13: 112 | C13: 62 | D13: 568 | E13: 51134
A14: 457 | B14: 113 | C14: 63 | D14: 570 | E14: 51704
A15: 458 | B15: 114 | C15: 64 | D15: 572 | E15: 52276
